fUST/lending_fUST_20250812
["ID","MTS","AMOUNT","RATE_DAILY","PERIOD"]
[378747699,1755000649422,-460.0,0.00020204,2]
[378747700,1755000649431,-705.68,0.00020204,2]
[378747701,1755000649441,-460.0,0.00020204,2]
[378747702,1755000649450,-460.0,0.00020204,2]
[378747703,1755000649459,-2670.17,0.00020204,2]
[378747704,1755000649468,-460.0,0.00020204,2]
[378747705,1755000649478,-460.0,0.00020204,2]
[378747706,1755000649487,-460.0,0.00020204,2]
[378747707,1755000649497,-460.0,0.00020204,2]
[378747708,1755000649506,-460.0,0.00020204,2]
[378747709,1755000649515,-661.64,0.00020204,2]
[378747710,1755000649525,-460.0,0.00020204,2]
[378747711,1755000649535,-836.09,0.00020204,2]
[378747712,1755000649544,-930.07,0.00020204,2]
[378747713,1755000649553,-460.0,0.00020204,2]
[378747714,1755000649563,-461.11,0.00020204,2]
[378747715,1755000649573,-6177.62,0.00020204,2]
[378747716,1755000649582,-573.23,0.00020204,2]
[378747717,1755000649591,-1703.42,0.00020204,2]
[378747718,1755000649601,-625.97,0.00020204,2]
[378747719,1755000649610,-460.0,0.00020204,2]
[378747720,1755000649620,-1061.0,0.00020204,2]
[378747721,1755000649629,-537.1,0.00020204,2]
[378747722,1755000649639,-475.24,0.00020204,2]
[378747723,1755000649649,-666.44,0.00020204,2]
[378747724,1755000649659,-638.44,0.00020204,2]
[378747725,1755000649669,-2273.73,0.00020204,2]
[378747726,1755000649679,-460.0,0.00020204,2]
[378747727,1755000649689,-736.75,0.00020205,2]
[378747728,1755000649699,-460.0,0.00020205,2]
[378747729,1755000649709,-460.0,0.00020205,2]
[378747730,1755000649718,-460.0,0.00020205,2]
[378747731,1755000649727,-460.0,0.00020205,2]
[378747732,1755000649737,-460.0,0.00020205,2]
[378747733,1755000649747,-460.0,0.00020205,2]
[378747734,1755000649756,-460.0,0.00020205,2]
[378747735,1755000649766,-702.07,0.00020205,2]
[378747736,1755000649777,-953.07,0.00020205,2]
[378747737,1755000649786,-910.9,0.00020205,2]
[378747738,1755000649796,-969.47,0.00020205,2]
[378747739,1755000649805,-919.15,0.00020205,2]
[378747740,1755000649815,-489.17,0.00020205,2]
[378747741,1755000649824,-1201.31,0.00020205,2]
[378747742,1755000649833,-1237.8,0.00020205,2]
[378747743,1755000649843,-531.2,0.00020205,2]
[378747744,1755000649854,-1448.93,0.00020205,2]
[378747745,1755000649864,-460.0,0.00020206,2]
[378747746,1755000649873,-460.0,0.00020206,2]
[378747747,1755000649882,-159.528,0.00020263,2]
[378747748,1755000649892,-229.449,0.00020263,2]
[378747749,1755000649901,-150.028,0.00020263,2]
[378747750,1755000649910,-151.0,0.000203,4]
[378747751,1755000649920,-22202.33780861,0.00020317,2]
[378747752,1755000649930,-5000.0,0.00020342,2]
[378747753,1755000649940,-150.101,0.00020366,2]
[378747754,1755000649949,-150.0,0.00020366,2]
[378747755,1755000649958,-245.048,0.00020366,2]
[378747756,1755000649967,-2151.0,0.00020366,2]
[378747757,1755000649977,-636.0,0.00020366,2]
[378747758,1755000649986,-974.961,0.00020366,2]
[378747759,1755000649995,-500.0,0.00020367,2]
[378747760,1755000650004,-551.29892843,0.00020367,2]
[378747761,1755000650014,-1174.68564457,0.00020379,2]
[378747762,1755000650024,-4000.0,0.00020393,4]
[378747763,1755000650033,-151.0,0.000204,3]
[378747764,1755000650043,-260.0,0.00020402,2]
[378747765,1755000650052,-208.0,0.00020406,2]
[378747766,1755000650061,-1500.0,0.00020468,2]
[378747767,1755000650071,-1500.0,0.00020468,2]
[378747768,1755000650080,-1017.81377964,0.00020468,2]
[378747769,1755000650089,-1500.0,0.00020468,2]
[378747770,1755000650099,-1500.0,0.00020468,2]
[378747771,1755000650108,-1500.0,0.00020468,2]
[378747772,1755000650117,-1500.0,0.00020468,2]
[378747773,1755000650126,-1500.0,0.00020468,2]
[378747774,1755000650135,-1500.0,0.00020468,2]
[378747775,1755000650145,-1500.0,0.00020468,2]
[378747776,1755000650154,-1252.28,0.00020477,2]
[378747777,1755000650163,-460.0,0.00020477,2]
[378747778,1755000650173,-460.0,0.00020477,2]
[378747779,1755000650182,-460.0,0.00020477,2]
[378747780,1755000650192,-995.54,0.00020477,2]
[378747781,1755000650201,-893.56,0.00020477,2]
[378747782,1755000650214,-460.0,0.00020477,2]
[378747783,1755000650224,-635.65,0.00020477,2]
[378747784,1755000650233,-2115.39,0.00020477,2]
[378747785,1755000650243,-460.0,0.00020478,2]
[378747786,1755000650252,-460.0,0.00020478,2]
[378747787,1755000650261,-460.0,0.00020478,2]
[378747788,1755000650271,-576.41,0.00020478,2]
[378747789,1755000650280,-460.0,0.00020478,2]
[378747790,1755000650289,-460.0,0.00020478,2]
[378747791,1755000650299,-460.0,0.00020478,2]
[378747792,1755000650308,-460.0,0.00020478,2]
[378747793,1755000650318,-664.35,0.00020478,2]
[378747794,1755000650327,-460.0,0.00020478,2]
[378747795,1755000650337,-601.75,0.00020478,2]
[378747796,1755000650346,-460.0,0.00020478,2]
[378747797,1755000650355,-460.0,0.00020478,2]
[378747798,1755000650365,-460.0,0.00020478,2]
[378747799,1755000650374,-1560.37,0.00020478,2]
[378747800,1755000650383,-460.0,0.00020478,2]
[378747801,1755000650392,-505.6,0.00020478,2]
[378747802,1755000650402,-460.0,0.00020478,2]
[378747803,1755000650411,-705.68,0.00020478,2]
[378747804,1755000650420,-460.0,0.00020478,2]
[378747805,1755000650430,-460.0,0.00020478,2]
[378747806,1755000650439,-2670.17,0.00020478,2]
[378747807,1755000650448,-460.0,0.00020478,2]
[378747808,1755000650458,-460.0,0.00020478,2]
[378747809,1755000650467,-460.0,0.00020478,2]
[378747810,1755000650477,-460.0,0.00020478,2]
[378747811,1755000650486,-460.0,0.00020478,2]
[378747812,1755000650495,-661.64,0.00020478,2]
[378747813,1755000650505,-460.0,0.00020478,2]
[378747814,1755000650514,-836.09,0.00020478,2]
[378747815,1755000650524,-930.07,0.00020478,2]
[378747816,1755000650533,-460.0,0.00020478,2]
[378747817,1755000650543,-461.11,0.00020478,2]
[378747818,1755000650552,-6177.62,0.00020478,2]
[378747819,1755000650561,-573.23,0.00020478,2]
[378747820,1755000650570,-1703.42,0.00020478,2]
[378747821,1755000650579,-625.97,0.00020478,2]
[378747822,1755000650588,-460.0,0.00020478,2]
[378747823,1755000650598,-1061.0,0.00020478,2]
[378747824,1755000650607,-537.1,0.00020478,2]
[378747825,1755000650616,-475.24,0.00020478,2]
[378747826,1755000650626,-666.44,0.00020478,2]
[378747827,1755000650635,-638.44,0.00020478,2]
[378747828,1755000650644,-2273.73,0.00020478,2]
[378747829,1755000650653,-460.0,0.00020478,2]
[378747830,1755000650663,-736.75,0.00020479,2]
[378747831,1755000650672,-460.0,0.00020479,2]
[378747832,1755000650682,-460.0,0.00020479,2]
[378747833,1755000650691,-460.0,0.00020479,2]
[378747834,1755000650700,-460.0,0.00020479,2]
[378747835,1755000650711,-460.0,0.00020479,2]
[378747836,1755000650720,-460.0,0.00020479,2]
[378747837,1755000650731,-593.80628868,0.00020479,2]
[378747838,1755000650777,-702.07,0.00020479,2]
[378747839,1755000650786,-953.07,0.00020479,2]
[378747840,1755000650796,-910.9,0.00020479,2]
[378747841,1755000650805,-969.47,0.00020479,2]
[378747842,1755000650814,-919.15,0.00020479,2]
[378747843,1755000650823,-489.17,0.00020479,2]
[378747844,1755000650833,-1201.31,0.00020479,2]
[378747845,1755000650843,-1237.8,0.00020479,2]
[378747846,1755000650854,-531.2,0.00020479,2]
[378747847,1755000650864,-1448.93,0.00020479,2]
[378747848,1755000650873,-460.0,0.0002048,2]
[378747849,1755000650883,-460.0,0.0002048,2]
[378747850,1755000650893,-430.826,0.00020581,2]
[378747851,1755000650902,-461.76100612,0.00020595,10]
[378747852,1755000650912,-417.15472785,0.000206,10]
[378747853,1755000650921,-528.03329096,0.000206,10]
[378747854,1755000650932,-500.0,0.000206,2]
[378747855,1755000650941,-12673.43806534,0.000206,10]
[378747856,1755000650950,-500.0,0.000206,2]
[378747857,1755000650959,-18502.69577858,0.00020603,2]
[378747858,1755000650970,-2200.0,0.00020653,2]
[378747859,1755000650979,-208.0,0.00020672,2]
[378747860,1755000650988,-151.0,0.000207,3]
[378747861,1755000650998,-1252.28,0.00020751,2]
[378747862,1755000651008,-460.0,0.00020751,2]
[378747863,1755000651017,-460.0,0.00020751,2]
[378747864,1755000651027,-460.0,0.00020751,2]
[378747865,1755000651035,-995.54,0.00020751,2]
[378747866,1755000651044,-893.56,0.00020751,2]
[378747867,1755000651055,-460.0,0.00020751,2]
[378747868,1755000651065,-635.65,0.00020751,2]
[378747869,1755000651074,-2115.39,0.00020751,2]
[378747870,1755000651083,-460.0,0.00020752,2]
[378747871,1755000651093,-460.0,0.00020752,2]
[378747872,1755000651102,-460.0,0.00020752,2]
[378747873,1755000651111,-576.41,0.00020752,2]
[378747874,1755000651122,-460.0,0.00020752,2]
[378747875,1755000651132,-460.0,0.00020752,2]
[378747876,1755000651144,-460.0,0.00020752,2]
[378747877,1755000651153,-460.0,0.00020752,2]
[378747878,1755000651164,-664.35,0.00020752,2]
[378747879,1755000651173,-460.0,0.00020752,2]
[378747880,1755000651183,-601.75,0.00020752,2]
[378747881,1755000651192,-460.0,0.00020752,2]
[378747882,1755000651202,-460.0,0.00020752,2]
[378747883,1755000651211,-460.0,0.00020752,2]
[378747884,1755000651221,-436.1234906,0.00020752,2]
[378747885,1755000651411,-500.0,0.000192,2]
[378747886,1755000700313,25236.34355715,0.00018,2]
[378747887,1755000703538,151.584831,0.000231,30]
[378747888,1755000786480,-178.42545669,0.00017913,2]
[378747889,1755000789914,-185.4545065,0.00017913,2]
[378747890,1755000792447,-195.96891215,0.00017913,2]
[378747891,1755000794626,-244.71229766,0.00017913,2]
[378747892,1755000797167,-424.35506927,0.00017913,2]
[378747893,1755000801751,-169.19780497,0.000179,2]
[378747894,1755000805386,-9.19962892,0.000179,2]
[378747895,1755000805408,-162.53192024,0.00017913,2]
[378747896,1755000807533,-257.7536585,0.00017913,2]
[378747897,1755000810784,-287.3297992,0.00017913,2]
[378747898,1755000812288,-142.08938333,0.00017913,2]
[378747899,1755000849989,-210.05091443,0.00017146,2]
[378747900,1755000853195,-94.65076457,0.00017146,2]
[378747901,1755000882978,-151.0,0.00017999,2]
[378747902,1755000883701,-149.0,0.00017999,2]
[378747903,1755000883730,-18.47857512,0.00017999,2]
[378747904,1755001063489,364.502336,0.00013699,2]
[378747906,1755001091091,-309.21945475,0.00017911,2]
[378747907,1755001093141,-177.11,0.00017911,2]
[378747908,1755001095182,-219.35675292,0.00017911,2]
[378747909,1755001098186,-223.73164722,0.00017911,2]
[378747911,1755001148462,-320.70736909,0.00017912,2]
[378747912,1755001151570,-263.75350978,0.00017912,2]
[378747913,1755001154253,-206.99157497,0.00017912,2]
[378747914,1755001157361,-148.29606184,0.00017912,2]
[378747915,1755001277174,-266.67586632,0.000179,2]
[378747916,1755001279307,-166.23342919,0.000179,2]
[378747917,1755001281431,-151.49281876,0.0001789,3]
[378747918,1755001285497,-197.7186863,0.0001789,3]
[378747919,1755001287577,-138.59849494,0.0001789,3]
[378747920,1755001287600,-240.84487243,0.000179,2]
[378747921,1755001290198,-333.02733449,0.000179,2]
[378747922,1755001292721,-243.91,0.0001789,3]
[378747923,1755001292745,-52.05802361,0.000179,2]
[378747924,1755001295412,-156.49865956,0.000179,2]
[378747925,1755001295802,9635.497664,0.00017,2]
[378747926,1755001295825,10000.0,0.00017,2]
[378747927,1755001295847,10000.0,0.00017,2]
[378747928,1755001295869,10000.0,0.00017,2]
[378747929,1755001295891,10000.0,0.00017,2]
[378747930,1755001295913,10000.0,0.00017,2]
[378747931,1755001295934,10000.0,0.00017,2]
[378747932,1755001295956,10000.0,0.00017,2]
[378747933,1755001295978,393.15877885,0.00017,2]
[378747934,1755001299034,-241.34877261,0.00017899,2]
[378747935,1755001302172,-278.86136868,0.0001789,3]
[378747936,1755001303759,-184.18583241,0.0001772,2]
[378747937,1755001305883,-452.24569003,0.0001772,2]
[378747938,1755001309109,-518.48619686,0.0001772,2]
[378747939,1755001311109,-224.02163091,0.0001772,2]
[378747940,1755001313563,-442.69755408,0.0001772,2]
[378747941,1755001316458,-164.03197639,0.0001772,2]
[378747942,1755001319091,-189.5788539,0.0001772,2]
[378747943,1755001324937,-292.69115805,0.0001772,2]
[378747944,1755001326982,9606.84122115,0.00016974,2]
[378747945,1755001327003,10000.0,0.00016974,2]
[378747946,1755001327023,5293.15877885,0.00016974,2]
[378747947,1755001330692,-158.02347389,0.0001772,2]
[378747948,1755001332293,-249.07519593,0.0001772,2]
[378747949,1755001334740,-394.15293683,0.0001772,2]
[378747950,1755001336362,-312.10413858,0.0001772,2]
[378747951,1755001340315,-152.49687673,0.0001772,2]
[378747952,1755001342016,-340.79910347,0.0001772,2]
[378747953,1755001345981,-256.62505515,0.0001772,2]
[378747954,1755001349416,-428.58558453,0.0001772,2]
[378747955,1755001352029,-240.19874226,0.0001772,2]
[378747956,1755001352050,-16.5135047,0.00017873,2]
[378747957,1755001354869,-411.28574999,0.00017873,2]
[378747958,1755001357185,-97.61547666,0.00017873,2]
[378747959,1755001357207,-68.31969025,0.00017873,2]
[378747960,1755001358837,-162.50916648,0.00017873,2]
[378747961,1755001360882,-228.94649826,0.00017873,2]
[378747962,1755001362496,-40.22464501,0.00017873,2]
[378747963,1755001362517,-303.73702922,0.00017873,2]
[378747964,1755001365604,-189.20619937,0.00017694,2]
[378747965,1755001369420,-327.36808057,0.00017694,2]
[378747966,1755001374313,-395.39899585,0.00017694,2]
[378747967,1755001375879,-385.95258278,0.00017694,2]
[378747968,1755001382093,-255.57894804,0.00017694,2]
[378747969,1755001383664,-333.64991787,0.00017694,2]
[378747970,1755001386269,-265.63475134,0.00017694,2]
[378747971,1755001390525,-205.49223635,0.00017694,2]
[378747972,1755001393405,-166.9356753,0.00017694,2]
[378747973,1755001394927,-244.12390364,0.00017694,2]
[378747974,1755001396920,-300.99477918,0.00017694,2]
[378747975,1755001398950,-155.05087573,0.00017694,2]
[378747976,1755001402015,-309.36782473,0.00017694,2]
[378747977,1755001408927,-185.89171525,0.00017694,2]
[378747978,1755001410448,-196.29442186,0.00017694,2]
[378747979,1755001412153,-154.90224994,0.00017694,2]
[378747980,1755001414544,-235.324473,0.00017694,2]
[378747981,1755001416163,-234.19330905,0.00017694,2]
[378747982,1755001420605,-232.69793018,0.00017694,2]
[378747983,1755001423637,-166.42584238,0.00017694,2]
[378747984,1755001425167,-59.51528759,0.00017694,2]
[378747985,1755001425189,-206.50347607,0.00017872,2]
[378747986,1755001430093,-93.49652393,0.00017872,2]
[378747987,1755001430114,-85.63352984,0.00017873,2]
[378747988,1755001432133,-110.62944094,0.00017873,2]
[378747989,1755001432155,-49.37055906,0.00017873,2]
[378747990,1755001433900,-415.83836332,0.00017873,2]
[378747991,1755001436395,-34.79107762,0.00017873,2]
[378747992,1755001436417,-244.20860187,0.00017873,2]
[378747993,1755001441238,-362.52785105,0.00017694,2]
[378747994,1755001443969,-388.31799339,0.00017694,2]
[378747995,1755001447077,-155.6085644,0.00017694,2]
[378747996,1755001451492,-278.37838903,0.00017694,2]
[378747997,1755001454016,-172.19565159,0.00017694,2]
[378747998,1755001457534,-263.97913976,0.00017694,2]
[378747999,1755001461443,-266.83070884,0.00017694,2]
[378748000,1755001468150,-224.62500086,0.00017694,2]
[378748001,1755001470401,-200.6999928,0.00017694,2]
[378748002,1755001474187,-211.03874077,0.00017694,2]
[378748003,1755001477052,-256.28287228,0.00017694,2]
[378748004,1755001479601,-151.51170282,0.00017694,2]
[378748005,1755001482630,-300.0,0.00017694,2]
[378748006,1755001487388,-300.0,0.00017694,2]
[378748007,1755001489569,-333.86510025,0.00017694,2]
[378748008,1755001493199,-303.04575397,0.00017694,2]
[378748009,1755001498542,-300.0,0.00017694,2]
[378748010,1755001500306,-335.32246562,0.00017694,2]
[378748011,1755001503686,-195.77007257,0.00017694,2]
[378748012,1755001503709,-104.22992743,0.000178,2]
[378748013,1755001505688,-186.93,0.000178,2]
[378748014,1755001509427,-259.72974947,0.000178,2]
[378748015,1755001510943,-245.34930878,0.000178,2]
[378748016,1755001513708,-166.62762435,0.000178,2]
[378748017,1755001516844,-165.52241516,0.000178,2]
[378748018,1755001518260,-315.27820173,0.000178,2]
[378748019,1755001520883,-294.2860022,0.000178,2]
[378748020,1755001525738,-227.33216717,0.00017622,2]
[378748021,1755001527866,-198.6212951,0.00017622,2]
[378748022,1755001529918,-161.83628158,0.00017622,2]
[378748023,1755001532476,-171.54446583,0.00017622,2]
[378748024,1755001534672,-274.25291041,0.00017622,2]
[378748025,1755001537360,-285.40050124,0.00017622,2]
[378748026,1755001541175,-127.80568036,0.00017622,2]
[378748027,1755001541199,-33.29740331,0.000178,2]
[378748028,1755001543538,-271.67294127,0.000178,2]
[378748029,1755001545409,-287.68367419,0.000178,2]
[378748030,1755001549177,-213.36729822,0.000178,2]
[378748031,1755001554475,-201.13310184,0.00017637,2]
[378748032,1755001556701,-641.26889547,0.0001746,2]
[378748033,1755001558670,-240.48863818,0.0001746,2]
[378748034,1755001561778,-217.50144414,0.0001746,2]
[378748035,1755001564532,-217.41933269,0.0001746,2]
[378748036,1755001567226,-232.64148585,0.0001746,2]
[378748037,1755001568676,-317.1158498,0.0001746,2]
[378748038,1755001570155,-171.54027768,0.0001746,2]
[378748039,1755001571969,-164.0772322,0.0001746,2]
[378748040,1755001574340,-50.76146267,0.0001746,2]
[378748041,1755001574366,-40.36401066,0.00017637,2]
[378748042,1755001574390,-92.93580656,0.000178,2]
[378748043,1755001577179,-195.57572022,0.000178,2]
[378748044,1755001579746,-211.32322472,0.000178,2]
[378748045,1755001581665,-304.97359093,0.000178,2]
[378748046,1755001585602,-191.54580019,0.000178,2]
[378748047,1755001587079,-36.68016916,0.000178,2]
[378748048,1755001587512,117.53624452,0.00017622,2]
[378748049,1755001588531,-197.82291034,0.00017622,2]
[378748050,1755001590589,-297.51251135,0.00017622,2]
[378748051,1755001592580,-277.138039,0.00017041,2]
[378748052,1755001592605,-9.82293986,0.00017622,2]
[378748053,1755001595374,-318.84727447,0.00017622,2]
[378748054,1755001596904,-330.26763059,0.00017622,2]
[378748055,1755001599012,-28.5825685,0.00017622,2]
[378748057,1755001617787,-271.4174315,0.0001756,2]
[378748058,1755001619808,-210.35256253,0.0001756,2]
[378748059,1755001621314,-174.47428155,0.0001756,2]
[378748060,1755001623492,-143.75572442,0.0001756,2]
[378748061,1755001718749,36151.4691764,0.00017,2]
[378748062,1755001723062,372.37422731,0.000149,2]
[378748063,1755001723493,1000.0,0.0001,2]
[378748064,1755001724028,-151.16580636,0.00017773,2]
[378748065,1755001725889,-206.8110983,0.00017773,2]
[378748066,1755001727367,-152.0332552,0.00017773,2]
[378748067,1755001727511,211.35318605,0.00016,2]
[378748068,1755001728917,-169.98956831,0.00017773,2]
[378748069,1755001729112,17457.4777205,0.0001,2]
[378748070,1755001730508,11038.17327441,0.00017,2]
[378748071,1755001730664,-133.24089485,0.00017773,2]
[378748073,1755001830717,-153.24770248,0.00017693,2]
[378748094,1755001832360,-1948.7889724,0.00017693,2]
[378748096,1755001832372,-300.0,0.00017693,2]
[378748103,1755001832420,-2597.96332512,0.00017693,2]
[378748104,1755001832430,-2861.60708632,0.000178,2]
[378748106,1755001832440,-300.0,0.00017871,2]
[378748108,1755001832450,-300.0,0.00017871,2]
[378748110,1755001832459,-1200.0,0.00017871,2]
[378748111,1755001832470,-460.0,0.00017871,2]
[378748113,1755001832480,-959.0,0.00017872,2]
[378748115,1755001832490,-460.0,0.00017872,2]
[378748117,1755001832500,-436.15157528,0.00017872,2]
[378748119,1755001832510,-460.0,0.00017872,2]
[378748121,1755001832519,-460.0,0.00017872,2]
[378748122,1755001832529,-1036.58,0.00017872,2]
[378748124,1755001832539,-460.0,0.00017872,2]
[378748126,1755001832549,-2283.43,0.00017872,2]
[378748127,1755001832563,-460.0,0.00017872,2]
[378748129,1755001832574,-460.0,0.00017872,2]
[378748131,1755001832584,-460.0,0.00017872,2]
[378748133,1755001832594,-460.0,0.00017872,2]
[378748135,1755001832603,-460.0,0.00017872,2]
[378748137,1755001832612,-41622.00022801,0.00017872,2]
[378748139,1755001832625,-6213.65475925,0.00017872,2]
[378748141,1755001832637,-2127.13148235,0.00017872,2]
[378748143,1755001832649,-37.21353039,0.00017872,2]
[378748144,1755001832659,-500.0,0.00017873,2]
[378748145,1755001832669,-503.85653375,0.00017873,2]
[378748146,1755001832678,-500.0,0.00017873,2]
[378748147,1755001832688,-501.2477495,0.00017873,2]
[378748148,1755001832697,-501.14541372,0.00017873,2]
[378748149,1755001832707,-500.0,0.00017873,2]
[378748150,1755001832716,-500.0,0.00017873,2]
[378748151,1755001832725,-500.0,0.00017873,2]
[378748152,1755001832735,-500.80613502,0.00017873,2]
[378748153,1755001832746,-500.0,0.00017873,2]
[378748154,1755001832755,-212.91207987,0.00017873,2]
[378748155,1755001832764,-212.08568733,0.00017873,2]
[378748156,1755001832774,-500.0,0.00017873,2]
[378748157,1755001832783,-500.0,0.00017873,2]
[378748158,1755001832793,-500.0,0.00017873,2]
[378748159,1755001832802,-500.0,0.00017873,2]
[378748160,1755001832818,-500.0,0.00017873,2]
[378748161,1755001832835,-276.8535222,0.00017873,2]
[378748162,1755001832846,-500.0,0.00017873,2]
[378748163,1755001832856,-500.0,0.00017873,2]
[378748164,1755001832866,-500.0,0.00017873,2]
[378748165,1755001832876,-501.01799849,0.00017873,2]
[378748166,1755001832887,-500.50974004,0.00017873,2]
[378748167,1755001832898,-501.0,0.00017873,2]
[378748168,1755001832908,-501.0,0.00017873,2]
[378748169,1755001832918,-501.0,0.00017873,2]
[378748170,1755001832929,-501.0,0.00017873,2]
[378748171,1755001832939,-570.94161269,0.00017873,2]
[378748172,1755001832949,-151.0,0.00017889,2]
[378748173,1755001832959,-452.88863132,0.0001789,3]
[378748174,1755001832970,-186.93,0.0001789,3]
[378748175,1755001832980,-460.0,0.00017899,2]
[378748176,1755001832990,-1317.23,0.00017899,2]
[378748177,1755001833000,-470.69,0.00017899,2]
[378748178,1755001833010,-460.0,0.00017899,2]
[378748179,1755001833021,-460.0,0.00017899,2]
[378748180,1755001833032,-1818.54,0.00017899,2]
[378748181,1755001833042,-460.0,0.00017899,2]
[378748182,1755001833052,-460.0,0.00017899,2]
[378748183,1755001833066,-460.0,0.00017899,2]
[378748184,1755001833076,-460.0,0.00017899,2]
[378748185,1755001833087,-747.04686377,0.00017899,2]
[378748192,1755001838052,-5000.0,0.00017693,2]
[378748193,1755001838063,-460.0,0.00017872,2]
[378748194,1755001838078,-173.14330474,0.00017872,2]
[378748195,1755001838106,-226.25251092,0.00017872,2]
[378748196,1755001838117,-500.0,0.00017872,2]
[378748197,1755001838127,-299.67696902,0.00017872,2]
[378748198,1755001838141,-200.32303098,0.00017872,2]
[378748199,1755001838150,-272.20608253,0.00017872,2]
[378748200,1755001838160,-500.0,0.00017872,2]
[378748201,1755001838170,-500.0,0.00017872,2]
[378748202,1755001838179,-500.0,0.00017872,2]
[378748203,1755001838188,-563.63081402,0.00017872,2]
[378748204,1755001838198,-2179.63313623,0.00017899,2]
[378748205,1755001838207,-1009.34,0.00017899,2]
[378748206,1755001838217,-460.0,0.00017899,2]
[378748207,1755001838226,-485.17,0.00017899,2]
[378748208,1755001838236,-460.0,0.00017899,2]
[378748209,1755001838246,-460.0,0.00017899,2]
[378748210,1755001838261,-696.18,0.00017899,2]
[378748211,1755001838270,-565.03,0.00017899,2]
[378748212,1755001838280,-460.0,0.00017899,2]
[378748213,1755001838290,-769.97,0.00017899,2]
[378748214,1755001838299,-556.78,0.00017899,2]
[378748215,1755001838309,-460.0,0.00017899,2]
[378748216,1755001838323,-460.0,0.00017899,2]
[378748217,1755001838334,-983.58,0.00017899,2]
[378748218,1755001838343,-983.58,0.00017899,2]
[378748219,1755001838353,-983.58,0.00017899,2]
[378748220,1755001838363,-983.58,0.00017899,2]
[378748221,1755001838373,-983.58,0.00017899,2]
[378748222,1755001838384,-983.58,0.00017899,2]
[378748223,1755001838394,-983.58,0.00017899,2]
[378748224,1755001838403,-983.58,0.00017899,2]
[378748225,1755001838412,-983.58,0.00017899,2]
[378748226,1755001838421,-983.58,0.00017899,2]
[378748227,1755001838431,-983.58,0.00017899,2]
[378748228,1755001838440,-983.58,0.00017899,2]
[378748229,1755001838450,-983.58,0.00017899,2]
[378748230,1755001838459,-983.58,0.00017899,2]
[378748231,1755001838468,-983.58,0.00017899,2]
[378748232,1755001838478,-983.58,0.00017899,2]
[378748233,1755001838488,-983.58,0.00017899,2]
[378748234,1755001838497,-983.58,0.00017899,2]
[378748235,1755001838507,-460.0,0.00017899,2]
[378748236,1755001838516,-420.9119391,0.00017899,2]
[378748237,1755001838527,-634.63,0.00017899,2]
[378748238,1755001838537,-460.0,0.00017899,2]
[378748239,1755001838547,-366534.46906468,0.000179,2]
[378748240,1755001838556,-500.0,0.000179,2]
[378748241,1755001838566,-255.0,0.0001791,2]
[378748242,1755001838580,-308.4932625,0.00017915,2]
[378748243,1755001838590,-500.0,0.00017973,2]
[378748244,1755001838600,-500.0,0.00017973,2]
[378748245,1755001838609,-500.0,0.00017973,2]
[378748246,1755001838620,-500.0,0.00017973,2]
[378748247,1755001838629,-500.0,0.00017973,2]
[378748248,1755001838639,-500.0,0.00017973,2]
[378748249,1755001838649,-360.12934625,0.00017973,2]
[378748250,1755001838658,-500.0,0.00017973,2]
[378748251,1755001838668,-500.0,0.00017973,2]
[378748252,1755001838677,-500.0,0.00017973,2]
[378748253,1755001838686,-500.0,0.00017973,2]